{"text_format":"3","workbook":"xlsx","n_sheets":3,"sheets":["汇总表","清单1（分部分项工程）","清单2（措施项目工程）"],"not_rendered":{"defined_names":1},"read":"whole","date_system":"1900"}

{"sheet":"汇总表","index":0,"n_rows":5,"n_cols":5,"rows_kept":5,"merged":[[0,0,0,4]]}
["2025年“F”项目土石方、挡墙、箱涵、管涵劳务及措施项目报价清单"]
["序号","项目名称","招标控制价\n（元）","投标报价\n（元）","备注"]
[1,"分部分项工程",{"$f":"'清单1（分部分项工程）'!G33","v":829623.39}]
[2,"措施项目工程",{"$f":"'清单2（措施项目工程）'!G9","v":{"v":898444.8,"d":"898444.80"}}]
[null,"合计：",{"$f":"C3+C4","v":1728068.19},{"$f":"D3+D4","v":{"v":0,"d":"0.00"}}]

{"sheet":"清单1（分部分项工程）","index":1,"n_rows":34,"n_cols":10,"rows_kept":34,"merged":[[0,0,0,9],[1,0,2,0],[1,1,2,1],[1,2,2,2],[1,3,2,3],[1,4,2,4],[1,5,1,6],[1,7,1,8],[32,0,32,4],[33,0,33,9]]}
["2025年“F”项目土石方、挡墙、箱涵、管涵劳务报价清单"]
["序号","项目名称","项目特征","单位","暂定工程量","金额（元）",null,"金额（元）"]
[{"$nulls":5},"全费用单价限价","合价","班组所报单价","合价","备注"]
["一、土石方工程"]
[1,"管沟、基槽、基坑土石方挖方","1.承包工作范围：完成本项目管沟、基槽、基坑等全部土石方开挖工程，包含但不限于：土石方开挖、石方破碎、场内就近堆放；开挖土石类别综合地勘资料考虑，所有工序相关费用均包含在综合单价中。\n2.开挖技术要求：挖填标高均需满足设计要求，误差控制在设计标高 ±5cm 内；开挖及场内运输方式由承包人自行确定；开挖方案、边坡施工防护、周边管线 / 构筑物 / 建筑物保护措施须经业主审批，施工须满足安全文明施工相关规范及规定，相关费用已包含在投标报价中。\n3.涵洞技术参数与检测要求：涵洞地基承载力要求：按结构设计规范执行，涵洞顶覆土深度 h≤70cm 时，地基承载力≥250kPa；覆土深度 0.7~2.0m 时，≥200kPa；覆土深度 2.0~4.0m 时，≥250kPa；覆土深度 4.0~6.0m 时，≥300kPa；覆土深度≥6.0m 时，≥350kPa；以上检测、复检、送样检测费用，均由承包人全额承担。\n4.其他费用与责任约定：临边及孔洞防护、进出车辆冲洗、场内外路面保洁、作业人员劳保防护用品、临时用水用电（含水电费用）、安全文明施工措施等全部相关费用，均由承包人承担并计入投标报价；因现场超挖、欠挖造成的全部损失，由承包人全额承担；施工机械进出场（含多次进出场）费用已综合计入报价，发包人不另行支付。\n5.履约与调价约定：施工全过程须满足城管、环保相关规范要求；为保障施工工期、满足环保要求产生的夜间施工措施费、赶工费等全部费用，均已包含在综合单价中，合同履约过程中不接受任何调价申请。\n6.工程量计量规则：按测绘开挖工程量结合现场收方数据，以立方米（m³）为单位计算","m3",{"v":1000,"d":"1000.00"},{"v":10,"d":"10.00"},{"$f":"F5*E5","v":{"v":10000,"d":"10000.00"}}]
[2,"管沟、基槽、基坑土石方回填","1.承包工作范围：完成本项目管沟、基槽、基坑等全部土石方回填工程，包含但不限于：土石方开挖、转运、回填；红线范围内取土回填转运；\n2..填方来源约定：本工程填方土源为项目红线内原有土石方，场内运距综合考虑（就近取土），相关费用已计入综合单价，发包人不另行计量支付。\n3.回填技术参数与检测要求：回填应按设计及规范分层压实，以上所有工程内容的检测、复检、送样检测费用，均由承包人全额承担。\n4.其他费用与责任约定：临边及孔洞防护、进出车辆冲洗、场内外路面保洁、作业人员劳保防护用品、临时用水用电（含水电费用）、安全文明施工措施等全部相关费用，均由承包人承担并计入投标报价；因现场超挖、欠挖造成的全部损失，由承包人全额承担；施工机械进出场（含多次进出场）费用已综合计入报价，发包人不另行支付。\n5.履约与调价约定：施工全过程须满足城管、环保相关规范要求；为保障施工工期、满足环保要求产生的夜间施工措施费、赶工费等全部费用，均已包含在综合单价中，合同履约过程中不接受任何调价申请。\n6.工程量计量规则：按测绘回填工程量结合现场收方数据，以立方米（m³）为单位计算","m3",{"v":1000,"d":"1000.00"},{"v":8,"d":"8.00"},{"$f":"F6*E6","v":{"v":8000,"d":"8000.00"}}]
[3,"箱涵、管涵、挡墙基底人工捡平","1.边坡及基地人工捡平：箱涵、管涵、挡墙基底人工捡平\n2.做法：满足设计及现行施工技术、质量验收规范要求\n3.计算规则：按垫层面积计算","m2",{"v":5000,"d":"5000.00"},{"v":4,"d":"4.00"},{"$f":"F7*E7","v":{"v":20000,"d":"20000.00"}}]
["二、特殊路基处理"]
[4,"20cm厚砂垫层","1.位置：片石换填区域顶部\n2.材质：石粉砂\n3.厚度：压实后完成厚度20cm\n4.压实度要求：压实系数不小于0.95\n5.做法：满足设计及现行施工技术、质量验收规范要求","m3",463.29,{"v":180,"d":"180.00"},{"$f":"F9*E9","v":{"v":83392.2,"d":"83392.20"}}]
[5,"不透水性土工布","1.材质要求：不透水性土工布\n2.铺设位置：砂砾石层上方\n3.搭接量、层间附加层、加强层计入本项目综合单价内,结算时不单独计算该部分工程量。\n4.工程量计算规则：以现场实际收方为准","m2",9484.31,{"v":6.5,"d":"6.50"},{"$f":"F10*E10","v":61648.02}]
["三、混凝土挡土墙"]
[6,"混凝土挡土墙（混凝土甲供）","1.混凝土强度等级：混凝土挡土墙（混凝土甲供）\n2.变形缝：单列\n3.砼浇筑采用的机械种类及方式：承包人自行考虑，泵车、天泵费用由发包人承担，承包人负责混凝土运输道路及浇筑场地的修整，费用由承包人综合考虑在报价中；\n4.分层浇筑所需措施费用由承包人自行考虑\n5.做法：满足设计及现行施工技术、质量验收规范要求","m3",3177.12,{"v":35,"d":"35.00"},{"$f":"F12*E12","v":{"v":111199.2,"d":"111199.20"}},null,null,"砼甲供\n损耗4%"]
[7,"沥青麻絮变形缝","1.材质：沥青麻絮\n2.缝宽：20~30mm\n3.设置要求：挡墙每隔10~15m或地质变化较大处设置沉降缝,缝宽2~3cm,用沥青麻絮三面填塞,填塞深度不小于15cm设置变形缝产生的措施费由承包人综合考虑在投标报价中。\n4.工程量计算规则：按挡土墙变形缝两侧及顶部长度计算，以现场实际收方为准","m",1539.83,{"v":30,"d":"30.00"},{"v":46194.9,"d":"46194.90"}]
[8,"粘土胶泥防渗层","1.铺设位置：挡墙墙背碎石过滤层下\n2.铺设坡比：1:10\n3.做法：满足设计及现行施工技术、质量验收规范要求","m3",85.05,{"v":50,"d":"50.00"},{"v":4252.5,"d":"4252.50"}]
[9,"碎石反滤层及墙背回填","1.规格：碎石反滤层及墙背回填\n2.坡比：靠墙一侧坡比1:0.5\n3.墙背回填：墙体应达到设计强度75%以上,方可进行墙背回填。墙背填料应符合规范要求。墙背回填填料与挡墙顶之间的高差需≤1.2m,并应分层回填分层填筑夯实,可采用便捷式振动夯或平板夯,且压实度≥94%。\n3.其他：满足设计及现行施工技术、质量验收规范要求","m3",863.73,{"v":200,"d":"200.00"},{"v":172746,"d":"172746.00"}]
[10,"泄水管 φ50PVC管","1.泄水孔规格、材质：PVC管 φ50PVC（含管件）\n2.布置间距：泄水孔预埋φ50mmPVC管,挡土墙采用2*2m梅花形布置,水平间距2m、垂直距离2m布置。泄水孔间距2~3m,上下交错布置，孔内预埋φ5cmPVC管,PVC管应长出墙背10cm,其端部用渗水土工布包裹（土工布单列）,泄水孔出口应保证排水顺畅\n3.位置：墙身在填土线以上的部分或常水位以上的部分应分层设置泄水孔，衡重台处应增设一排泄水孔。当地下水较丰富地段,泄水孔应适当加密\n4.做法：满足设计及现行施工技术、质量验收规范要求","m",421.05,{"v":22,"d":"22.00"},{"v":9263.1,"d":"9263.10"}]
[11,"过滤土工布（150g/m²）","1.材料类别：过滤土工布（150g/m²）；\n2.满足设计及规范要求；\n3.搭接量、层间附加层、加强层计入本项目综合单价内,结算时不单独计算该部分工程量。\n4.土工布包裹PVC管等降效费由承包人综合考虑在报价中\n5.其他：未尽事宜满足设计及现行技术、质量验收规范要求","m2",600.44,{"v":5.5,"d":"5.50"},3302.42]
["四、管涵"]
[12,"管涵附属设施混凝土浇筑（混凝土甲供）","1.类型：混凝土管形基础、帽石、边沟跌井、护坡边沟截水墙、护坡边沟、混凝土一字墙身、混凝土一字墙基础、混凝土铺砌截水墙、阶梯急流槽/铺砌等\n2.混凝土强度等级：综合（混凝土甲供）\n3.砼浇筑采用的机械种类及方式：承包人自行考虑，泵车、天泵费用由发包人承担，承包人负责混凝土运输道路及浇筑场地的修整，费用由承包人综合考虑在报价中；\n4.截面尺寸：详见设计图纸；\n5.做法：满足设计及现行施工技术、质量验收规范要求","m3",769.56,{"v":35,"d":"35.00"},{"$f":"F19*E19","v":{"v":26934.6,"d":"26934.60"}},null,null,"砼甲供\n损耗4%"]
[13,"C20混凝土铺砌（混凝土甲供）","1.混凝土强度等级：C20商品砼（混凝土甲供）\n2.砼浇筑采用的机械种类及方式：承包人自行确定，泵车、天泵费用由发包人承担，承包人负责混凝土运输道路及浇筑场地的修整，费用由承包人综合考虑在报价中；\n3.做法：满足设计及现行施工技术、质量验收规范要求","m3",{"v":12.3,"d":"12.30"},{"v":35,"d":"35.00"},{"v":430.5,"d":"430.50"},null,null,"砼甲供\n损耗4%"]
[14,"D500承插钢筋混凝土管（管道甲供）","1.规格：D500承插钢筋混凝土管 II级（承插钢筋混凝土管甲供）\n2.场内外二次及多次转运由承包人综合考虑\n3.安装及吊装方式：由承包人综合考虑\n4.接口处固定镀锌网，表面抹水泥砂浆密封\n5.洞身每隔4-6米设置一道沉降缝,缝内填以沥青麻絮（另计）\n6.做法：满足设计及现行施工技术、质量验收规范要求","m",116.45,{"v":60,"d":"60.00"},{"v":6987,"d":"6987.00"},null,null,"承插钢筋混凝土管甲供"]
[15,"D750/800承插钢筋混凝土管（管道甲供）","1.规格：D750/800承插钢筋混凝土管 II级（承插钢筋混凝土管甲供）\n2.场内外二次及多次转运由承包人综合考虑\n3.安装及吊装方式：由承包人综合考虑\n4.接口处固定镀锌网，表面抹水泥砂浆密封\n5.洞身每隔4-6米设置一道沉降缝,缝内填以沥青麻絮（另计）\n6.做法：满足设计及现行施工技术、质量验收规范要求","m",194.78,{"v":70,"d":"70.00"},{"v":13634.6,"d":"13634.60"},null,null,"承插钢筋混凝土管甲供"]
[16,"D1000承插钢筋混凝土管（管道甲供）","1.规格：D1000承插钢筋混凝土管 II级（承插钢筋混凝土管甲供）\n2.场内外二次及多次转运由承包人综合考虑\n3.安装及吊装方式：由承包人综合考虑\n4.接口处固定镀锌网，表面抹水泥砂浆密封\n5.洞身每隔4-6米设置一道沉降缝,缝内填以沥青麻絮（另计）\n6.做法：满足设计及现行施工技术、质量验收规范要求","m",171.74,{"v":80,"d":"80.00"},{"v":13739.2,"d":"13739.20"},null,null,"承插钢筋混凝土管甲供"]
[17,"沥青麻絮变形缝","1.材质：沥青麻絮\n2.缝宽：20~30mm\n3.设置要求：洞身每隔4-6米设置一道沉降缝,缝内填以沥青麻絮的费用由承包人综合考虑在投标报价中。\n4.工程量计算规则：按挡土墙变形缝两侧及顶部长度计算，以现场实际收方为准","m",141.41,{"v":30,"d":"30.00"},{"v":4242.3,"d":"4242.30"}]
["五、箱涵"]
[18,"现浇构件钢筋制安型号综合（钢筋甲供）","1.钢筋种类、规格：钢筋规格综合考虑；（钢筋甲供）\n2.钢筋连接方式：各种连接方式、套筒连接等承包人综合考虑在报价中\n3.支撑钢筋等措施钢筋综合考虑\n4.弧形构件钢筋增加的费用，由承包人综合考虑，进入综合单价中\n5.发包人不提供钢筋加工场地，承包人须自行场外加工并运输至施工现场，钢筋加工、运输及场内二次转运等所有相关费用均已包含在综合单价中。\n6.发包人不提供水电接入口，需承包人自备发电机进行加工及施工，该费用由承包人综合考虑在投标报价中\n7.做法：满足设计及现行施工技术、质量验收规范要","t",71.23,{"v":1800,"d":"1800.00"},{"$f":"F26*E26","v":{"v":128214,"d":"128214.00"}},null,null,"钢筋甲供\n损耗7%"]
[19,"混凝土箱体浇筑（混凝土甲供）","1.混凝土强度等级：C35混凝土箱体（混凝土甲供）\n2.变形缝：洞身每隔4-6米设置一道沉降缝,缝内填以沥青麻絮（另计）\n3.砼浇筑、养护采用的机械种类及方式：承包人自行考虑，泵车、天泵费用由发包人承担，承包人负责混凝土运输道路及浇筑场地的修整，费用由承包人综合考虑在报价中；\n4.分层浇筑、养护所需措施费用由承包人自行考虑\n5.做法：满足设计及现行施工技术、质量验收规范要求","m3",429.56,{"v":35,"d":"35.00"},{"v":15034.6,"d":"15034.60"},null,null,"砼甲供\n损耗4%"]
[20,"沥青麻絮变形缝","1.材质：沥青麻絮\n2.缝宽：20~30mm\n3.设置要求：洞身每隔4-6米设置一道沉降缝,缝内填以沥青麻絮的费用由承包人综合考虑在投标报价中。\n4.工程量计算规则：按挡土墙变形缝两侧及顶部长度计算，以现场实际收方为准","m",13.13,{"v":30,"d":"30.00"},{"v":393.9,"d":"393.90"}]
[21,"箱涵附属设施混凝土浇筑（混凝土甲供）","1.类型：帽石、箱涵基础、锥坡截水墙、翼墙墙身等\n2.混凝土强度等级：综合（混凝土甲供）\n3.砼浇筑、养护采用的机械种类及方式：承包人自行考虑，泵车、天泵费用由发包人承担，承包人负责混凝土运输道路及浇筑场地的修整，费用由承包人综合考虑在报价中；\n4.截面尺寸：详见设计图纸；\n5.做法：满足设计及现行施工技术、质量验收规范要求","m3",352.07,{"v":35,"d":"35.00"},12322.45,null,null,"砼甲供\n损耗4%"]
[22,"C20混凝土锥坡基础/铺砌（混凝土甲供）","1.混凝土强度等级：C20商品砼（混凝土甲供）\n2.砼浇筑、养护采用的机械种类及方式：承包人自行确定，泵车、天泵费用由发包人承担，承包人负责混凝土运输道路及浇筑场地的修整，费用由承包人综合考虑在报价中；\n3.做法：满足设计及现行施工技术、质量验收规范要求","m3",66.68,{"v":35,"d":"35.00"},{"v":2333.8,"d":"2333.80"},null,null,"砼甲供\n损耗4%"]
[23,"砂砾石箱涵垫层","1.位置：箱涵基础垫层\n2.材质：砂砾石\n3.厚度：压实后完成厚度30cm，详见设计\n4.计算规则：以图示尺寸按立方计算\n5.做法：满足设计及现行施工技术、质量验收规范要求","m3",{"v":159.5,"d":"159.50"},{"v":160,"d":"160.00"},{"v":25520,"d":"25520.00"}]
[24,"M10浆砌MU40片石护坡","1.部位：箱涵护坡 \n2.材料品种、规格：MU40片石\n3.砂浆强度等级：湿拌砌筑砂浆 M10\n4.其它：未尽事宜满足设计及现行技术、质量验收规范要求","m3",127.79,{"v":390,"d":"390.00"},{"v":49838.1,"d":"49838.10"}]
["合计",{"$nulls":5},{"$f":"SUM(G5:G32)","v":829623.39},null,{"$f":"SUM(I5:I32)","v":{"v":0,"d":"0.00"}}]
["注：\n1、全费用综合单价，包括人工费、材料费、机械费、管理费、利润、措施费、大型机械进出场费、降排水费、规费、销项增值税和附加税、弃土费，满足环保、城管、政策要求所需的施工措施费及赶工等费用；以上工程量均为暂估量，土石方工程以测绘报告及现场收方单为准，不因结算工程量与合同工程量不一致而调整综合单价。\n2.现场安全环保文明施工管理要求：（1）由公司统一发放印有“兴绿园林”字样和LOGO的安全帽和反光背心，班组按实名制领取，使用完后交回项目部，否则按采购费用扣款，其余参照合同附件中安全环保管理协议执行。（2）现场雾炮机由甲方提供，投标单位需安排人员管理使用，人工费、油费、维修费及管理费用综合考虑到投标报价中，不单独计取。  （3）防尘网由甲方提供，投标单位安排人员进行覆盖、回收、现场转移等，人工费综合考虑到投标报价中，不单独计取。（5）现场机械均实行一机一炮，每台挖掘机械均应配备随机雾炮机，工作时需保持雾炮机正常工作，加水、加油、维护等费用综合考虑在报价中。（6）机械配置需满足进度要求（7）发包人不提供水电接驳口及临时冲洗设施，由承包人自行考虑；\n3.承包人应在报价前自行完成现场踏勘，充分掌握现场实际情况；\n4.场外运输相关全部手续，由承包人自行负责办理；\n5.场内二次及多次转运产生的全部费用，由承包人综合计入投标报价；\n6.洗车池及洗车设备，由承包人综合计入投标报价；\n7.临时道路修建及维护：出入口硬化由发包人负责，其余运输路线内由承包人考虑相应措施，包含在投标报价中；\n8.甲供材料下车和保管：由承包人负责，超合同用量由承包人承担多出用量费用；\n9.检测项及检测费：施工内容的检测（复检）费用和送样由承包人承担；（甲供材料检测费由发包人承担）；\n10.专项方案论证相关费用由承包人承担；\n11.发包人负责提供由土石方施工班组实施的基本临时施工便道，施工过程中承包人根据施工作业需要自行负责修整、维护。"]

{"sheet":"清单2（措施项目工程）","index":2,"n_rows":10,"n_cols":10,"rows_kept":10,"merged":[[0,0,0,9],[1,0,2,0],[1,1,2,1],[1,2,2,2],[1,3,2,3],[1,4,2,4],[1,5,1,6],[1,7,1,8],[8,0,8,4],[9,0,9,9]]}
["2025年“F”项目土石方、挡墙、箱涵、管涵措施项目报价清单"]
["序号","项目名称","项目特征","单位","暂定工程量","金额（元）",null,"金额（元）"]
[{"$nulls":5},"全费用单价限价","合价","班组所报单价","合价","备注"]
["一、措施项目"]
[1,"挡土墙模板（含双排脚手架）","1.支模高度：综合考虑，超高模板费用不再另计\n2.模板类型：木模、组合钢模板、竹胶合板等综合；\n3.对拉螺栓、表面处理、打样、成品保护费及加固模板费用由承包人承担\n4.支架材料：钢管、竹、木支架综合，断面尺寸、材质、工艺等符合设计和施工验收规范要求；\n5.包含承包人根据自身技术能力要求所采用的本工程垂直运输，以及其他全部总价措施费，脚手架由承包人综合考虑，承包人应根据施工经验，现场实际情况和企业自身情况综合报价，包含搭设脚手架需要的所有材料、人工、机械、辅助措施等，需满足监理、业主及相关规范要求，搭设前应编制专项方案并通过监理和业主审核认可后施工；\n6.本项目承包人应根据施工经验,现场实际情况和企业自身情况综合报价,不论采用何种支模方式综合报价","m2",5029.46,{"v":80,"d":"80.00"},{"$f":"F5*E5","v":{"v":402356.8,"d":"402356.80"}}]
[2,"锥坡基础/铺砌模板","1.支模高度：综合考虑，超高模板费用不再另计\n2.模板类型：木模、组合钢模板、竹胶合板等综合；\n3.对拉螺栓、表面处理、打样、成品保护费及加固模板费用由承包人承担\n4.支架材料：钢管、竹、木支架综合，断面尺寸、材质、工艺等符合设计和施工验收规范要求；\n5.包含承包人根据自身技术能力要求所采用的本工程垂直运输，以及其他全部总价措施费；\n6.本项目承包人应根据施工经验,现场实际情况和企业自身情况综合报价,不论采用何种支模方式综合报价\n7.计算规则：按模板与混凝土接触面积计算","m2",{"v":50,"d":"50.00"},{"v":60,"d":"60.00"},{"$f":"F6*E6","v":{"v":3000,"d":"3000.00"}}]
[3,"管涵附属设施模板（含双排脚手架）","1.支模高度：综合考虑，超高模板费用不再另计\n2.模板类型：木模、组合钢模板、竹胶合板等综合；\n3.对拉螺栓、表面处理、打样、成品保护费及加固模板费用由承包人承担\n4.支架材料：钢管、竹、木支架综合，断面尺寸、材质、工艺等符合设计和施工验收规范要求；\n5.包含承包人根据自身技术能力要求所采用的本工程垂直运输，以及其他全部总价措施费，脚手架由承包人综合考虑，承包人应根据施工经验，现场实际情况和企业自身情况综合报价，包含搭设脚手架需要的所有材料、人工、机械、辅助措施等，需满足监理、业主及相关规范要求，搭设前应编制专项方案并通过监理和业主审核认可后施工；\n6.本项目承包人应根据施工经验,现场实际情况和企业自身情况综合报价,不论采用何种支模方式综合报价","m2",1340.41,{"v":80,"d":"80.00"},{"$f":"F7*E7","v":{"v":107232.8,"d":"107232.80"}}]
[4,"箱涵及附属设施混凝土模板（含双排及满堂脚手架）","1.支模高度：综合考虑，超高模板费用不再另计\n2.模板类型：木模、组合钢模板、竹胶合板等综合；\n3.对拉螺栓、表面处理、打样、成品保护费及加固模板费用由承包人承担\n4.支架材料：钢管、竹、木支架综合，断面尺寸、材质、工艺等符合设计和施工验收规范要求；\n5.包含承包人根据自身技术能力要求所采用的本工程垂直运输，以及其他全部总价措施费，脚手架由承包人综合考虑，承包人应根据施工经验，现场实际情况和企业自身情况综合报价，包含搭设脚手架需要的所有材料、人工、机械、辅助措施等，需满足监理、业主及相关规范要求，搭设前应编制专项方案并通过监理和业主审核认可后施工；\n6.本项目承包人应根据施工经验,现场实际情况和企业自身情况综合报价,不论采用何种支模方式综合报价","m2",4823.19,{"v":80,"d":"80.00"},{"$f":"F8*E8","v":{"v":385855.2,"d":"385855.20"}}]
["合计",{"$nulls":5},{"$f":"SUM(G5:G8)","v":{"v":898444.8,"d":"898444.80"}},null,{"$f":"SUM(I5:I8)","v":{"v":0,"d":"0.00"}}]
["注：\n1、全费用综合单价，包括人工费、材料费、机械费、管理费、利润、措施费、大型机械进出场费、降排水费、规费、销项增值税和附加税、弃土费，满足环保、城管、政策要求所需的施工措施费及赶工等所有费用；以上工程量均为暂估量，不因结算工程量与合同工程量不一致而调整综合单价。\n2.现场安全环保文明施工管理要求：（1）由公司统一发放印有“兴绿园林”字样和LOGO的安全帽和反光背心，班组按实名制领取，使用完后交回项目部，否则按采购费用扣款，其余参照合同附件中安全环保管理协议执行。（2）现场雾炮机由甲方提供，投标单位需安排人员管理使用，人工费、油费、维修费及管理费用综合考虑到投标报价中，不单独计取。  （3）防尘网由甲方提供，投标单位安排人员进行覆盖、回收、现场转移等，人工费综合考虑到投标报价中，不单独计取。（5）现场机械均实行一机一炮，每台挖掘机械均应配备随机雾炮机，工作时需保持雾炮机正常工作，加水、加油、维护等费用综合考虑在报价中。（6）机械配置需满足进度要求（7）发包人不提供水电接驳口及临时冲洗设施，由承包人自行考虑；\n3.承包人应在报价前自行完成现场踏勘，充分掌握现场实际情况；\n4.场外运输相关全部手续，由承包人自行负责办理；\n5.场内二次及多次转运产生的全部费用，由承包人综合计入投标报价；\n6.洗车池及洗车设备，由承包人综合计入投标报价；\n7.临时道路修建及维护：出入口硬化由发包人负责，其余运输路线内由投标人考虑相应措施，包含在投标报价中；\n8.专项方案论证相关费用由承包人承担；\n9.发包人负责提供由土石方施工班组实施的基本临时施工便道，施工过程中承包人根据施工作业需要自行负责修整、维护。"]